fUST/lending_fUST_20250508
["ID","MTS","AMOUNT","RATE_DAILY","PERIOD"]
[360225494,1746637834365,-654.51,0.00013698,2]
[360225495,1746637834376,-400.0,0.00013698,2]
[360225496,1746637834388,-400.0,0.00013698,2]
[360225497,1746637834405,-400.0,0.00013698,2]
[360225498,1746637834416,-752.74,0.00013698,2]
[360225499,1746637834428,-591.15,0.00013698,2]
[360225500,1746637834438,-400.0,0.00013698,2]
[360225501,1746637834449,-400.0,0.00013698,2]
[360225502,1746637834459,-604.34,0.00013698,2]
[360225503,1746637834469,-400.0,0.00013698,2]
[360225504,1746637834480,-2163.43,0.00013698,2]
[360225505,1746637834490,-400.0,0.00013698,2]
[360225506,1746637834500,-400.0,0.00013698,2]
[360225507,1746637834511,-657.8,0.00013698,2]
[360225508,1746637834522,-304.53102026,0.00013698,2]
[360225509,1746637834532,-1096.24,0.00013698,2]
[360225510,1746637834542,-400.0,0.00013698,2]
[360225511,1746637834552,-400.0,0.00013698,2]
[360225512,1746637834561,-1597.22,0.00013698,2]
[360225513,1746637834572,-588.6,0.00013698,2]
[360225514,1746637834582,-1181.92,0.00013698,2]
[360225515,1746637834592,-400.0,0.00013698,2]
[360225516,1746637834602,-400.0,0.00013698,2]
[360225517,1746637834612,-400.0,0.00013698,2]
[360225518,1746637834622,-1152.59,0.00013698,2]
[360225519,1746637834632,-685.86,0.00013698,2]
[360225520,1746637834643,-400.0,0.00013698,2]
[360225521,1746637834653,-400.0,0.00013698,2]
[360225522,1746637834663,-400.0,0.00013698,2]
[360225523,1746637834673,-1467.24,0.00013698,2]
[360225524,1746637834683,-2221.99,0.00013698,2]
[360225525,1746637834693,-579.24,0.00013698,2]
[360225526,1746637834703,-400.0,0.00013698,2]
[360225527,1746637834712,-400.0,0.00013698,2]
[360225528,1746637834722,-1744.66,0.00013698,2]
[360225529,1746637834732,-400.0,0.00013698,2]
[360225530,1746637834742,-200.0,0.00013698,2]
[360225531,1746637834752,-400.0,0.00013698,2]
[360225532,1746637834762,-400.0,0.00013698,2]
[360225533,1746637834772,-400.0,0.00013698,2]
[360225534,1746637834782,-1817.1,0.00013698,2]
[360225535,1746637834793,-1911.99,0.00013698,2]
[360225536,1746637834802,-400.0,0.00013698,2]
[360225537,1746637834812,-400.0,0.00013698,2]
[360225538,1746637834822,-151.0,0.00013698,2]
[360225539,1746637834832,-3545.42,0.00013698,2]
[360225540,1746637834841,-400.0,0.00013698,2]
[360225541,1746637834851,-235.50588791,0.00013698,2]
[360225542,1746637834861,-1361.36,0.00013698,2]
[360225543,1746637834872,-400.0,0.00013698,2]
[360225544,1746637834882,-151.0,0.00013698,2]
[360225545,1746637834893,-400.0,0.00013698,2]
[360225546,1746637834902,-400.0,0.00013698,2]
[360225547,1746637834912,-400.0,0.00013698,2]
[360225548,1746637834922,-1233.88,0.00013698,2]
[360225549,1746637834932,-400.0,0.00013698,2]
[360225550,1746637834941,-400.0,0.00013698,2]
[360225551,1746637834952,-400.0,0.00013698,2]
[360225552,1746637834961,-874.44,0.00013698,2]
[360225553,1746637834971,-400.0,0.00013698,2]
[360225554,1746637834982,-400.0,0.00013698,2]
[360225555,1746637834992,-794.4,0.00013698,2]
[360225556,1746637835002,-490.54,0.00013698,2]
[360225557,1746637835012,-411.56348302,0.00013698,2]
[360225558,1746637835022,-151.0,0.00013698,2]
[360225559,1746637835032,-1259.08,0.00013698,2]
[360225560,1746637835043,-827.62,0.00013698,2]
[360225561,1746637835052,-7383.31,0.00013698,2]
[360225562,1746637835062,-400.0,0.00013698,2]
[360225563,1746637835072,-509.85011232,0.00013698,2]
[360225564,1746637835082,-3274.01,0.00013698,2]
[360225565,1746637835093,-151.0,0.00013698,2]
[360225566,1746637835103,-400.0,0.00013698,2]
[360225567,1746637835114,-400.0,0.00013698,2]
[360225568,1746637835124,-400.0,0.00013698,2]
[360225569,1746637835134,-400.0,0.00013698,2]
[360225570,1746637835145,-954.03,0.00013698,2]
[360225571,1746637835156,-400.0,0.00013698,2]
[360225572,1746637835166,-400.0,0.00013698,2]
[360225573,1746637835176,-400.0,0.00013698,2]
[360225574,1746637835186,-400.0,0.00013698,2]
[360225575,1746637835196,-400.0,0.00013698,2]
[360225576,1746637835206,-400.0,0.00013698,2]
[360225577,1746637835216,-409.78,0.00013698,2]
[360225578,1746637835226,-400.0,0.00013698,2]
[360225579,1746637835235,-400.0,0.00013698,2]
[360225580,1746637835245,-476.0,0.00013698,2]
[360225581,1746637835255,-400.0,0.00013698,2]
[360225582,1746637835265,-400.0,0.00013698,2]
[360225583,1746637835275,-556.27,0.00013698,2]
[360225584,1746637835285,-8346.92,0.00013698,2]
[360225585,1746637835295,-400.0,0.00013698,2]
[360225586,1746637835306,-400.0,0.00013698,2]
[360225587,1746637835316,-400.0,0.00013698,2]
[360225588,1746637835325,-2305.29,0.00013698,2]
[360225589,1746637835335,-400.0,0.00013698,2]
[360225590,1746637835345,-400.0,0.00013698,2]
[360225591,1746637835354,-400.0,0.00013698,2]
[360225592,1746637835364,-217.0000134,0.00013698,2]
[360225593,1746637835374,-426.33584627,0.00013698,2]
[360225594,1746637835384,-400.0,0.00013698,2]
[360225595,1746637835394,-1613.91,0.00013698,2]
[360225596,1746637835408,-400.0,0.00013698,2]
[360225597,1746637835418,-400.0,0.00013698,2]
[360225598,1746637835429,-314.42,0.00013698,2]
[360225599,1746637835440,-400.0,0.00013698,2]
[360225600,1746637835451,-2625.6,0.00013698,2]
[360225601,1746637835461,-1150.32,0.00013698,2]
[360225602,1746637835472,-400.0,0.00013698,2]
[360225603,1746637835482,-400.0,0.00013698,2]
[360225604,1746637835491,-400.0,0.00013698,2]
[360225605,1746637835501,-317.91745748,0.00013698,2]
[360225606,1746637835511,-443.17,0.00013698,2]
[360225607,1746637835521,-400.0,0.00013698,2]
[360225608,1746637835530,-756.27,0.00013698,2]
[360225609,1746637835539,-831.16,0.00013698,2]
[360225610,1746637835549,-400.0,0.00013698,2]
[360225611,1746637835558,-400.0,0.00013698,2]
[360225612,1746637835567,-1220.96,0.00013698,2]
[360225613,1746637835576,-8038.37,0.00013698,2]
[360225614,1746637835586,-400.0,0.00013698,2]
[360225615,1746637835596,-713.23,0.00013698,2]
[360225616,1746637835605,-400.0,0.00013698,2]
[360225617,1746637835614,-400.0,0.00013698,2]
[360225618,1746637835623,-811.59,0.00013698,2]
[360225619,1746637835633,-446.17,0.00013698,2]
[360225620,1746637835644,-400.0,0.00013698,2]
[360225621,1746637835654,-400.0,0.00013698,2]
[360225622,1746637835664,-400.0,0.00013698,2]
[360225623,1746637835674,-400.0,0.00013698,2]
[360225624,1746637835683,-182.7150652,0.00013698,2]
[360225625,1746637835693,-1518.39,0.00013698,2]
[360225626,1746637835702,-438.92,0.00013698,2]
[360225627,1746637835711,-400.0,0.00013698,2]
[360225628,1746637835721,-850.99,0.00013698,2]
[360225629,1746637835730,-400.0,0.00013698,2]
[360225630,1746637835740,-1249.7,0.00013698,2]
[360225631,1746637835750,-151.0,0.00013698,2]
[360225632,1746637835760,-182.68864253,0.00013698,2]
[360225633,1746637835770,-400.0,0.00013698,2]
[360225634,1746637835780,-400.0,0.00013698,2]
[360225635,1746637835790,-2486.59,0.00013698,2]
[360225636,1746637835799,-400.0,0.00013698,2]
[360225637,1746637835809,-400.0,0.00013698,2]
[360225638,1746637835819,-400.0,0.00013698,2]
[360225639,1746637835829,-400.0,0.00013698,2]
[360225640,1746637835839,-400.0,0.00013698,2]
[360225641,1746637835849,-400.0,0.00013698,2]
[360225642,1746637835858,-589.65,0.00013698,2]
[360225643,1746637835868,-400.0,0.00013698,2]
[360225644,1746637835879,-452.88,0.00013698,2]
[360225645,1746637835889,-1343.57,0.00013698,2]
[360225646,1746637835899,-400.0,0.00013698,2]
[360225647,1746637835909,-2536.04,0.00013698,2]
[360225648,1746637835919,-400.0,0.00013698,2]
[360225649,1746637835930,-400.0,0.00013698,2]
[360225650,1746637835939,-3977.01,0.00013698,2]
[360225651,1746637835950,-400.0,0.00013698,2]
[360225652,1746637836107,-2193.12,0.00013698,2]
[360225653,1746637836118,-400.0,0.00013698,2]
[360225654,1746637836128,-400.0,0.00013698,2]
[360225655,1746637836138,-400.0,0.00013698,2]
[360225656,1746637836149,-448.34,0.00013698,2]
[360225657,1746637836159,-400.0,0.00013698,2]
[360225658,1746637836169,-1916.83,0.00013698,2]
[360225659,1746637836179,-261.53142807,0.00013698,2]
[360225660,1746637836189,-400.0,0.00013698,2]
[360225661,1746637836199,-151.0,0.00013699,2]
[360225662,1746637836209,-151.0,0.00013699,2]
[360225663,1746637836219,-7273.0565384,0.00013699,2]
[360225664,1746637836230,-1284.46,0.00013699,2]
[360225665,1746637836240,-1070.38,0.00013699,2]
[360225666,1746637836250,-891.99,0.00013699,2]
[360225667,1746637836261,-743.32,0.00013699,2]
[360225668,1746637836271,-619.43,0.00013699,2]
[360225669,1746637836280,-516.2,0.00013699,2]
[360225670,1746637836290,-430.16,0.00013699,2]
[360225671,1746637836299,-358.47,0.00013699,2]
[360225672,1746637836309,-298.72,0.00013699,2]
[360225673,1746637836318,-248.94,0.00013699,2]
[360225674,1746637836330,-1049.191507,0.00013699,2]
[360225675,1746637836340,-1173.9358285,0.00013699,2]
[360225676,1746637836350,-207.45,0.00013699,2]
[360225677,1746637836360,-172.87,0.00013699,2]
[360225678,1746637836370,-864.39,0.00013699,2]
[360225679,1746637836382,-151.0,0.00013699,2]
[360225680,1746637836392,-2200.0,0.00013699,2]
[360225681,1746637836411,-355.353781,0.00013699,2]
[360225682,1746637836421,-355.353781,0.00013699,2]
[360225683,1746637836431,-151.0,0.00013699,2]
[360225684,1746637836442,-151.0,0.00013699,2]
[360225685,1746637836452,-261.17823414,0.00013699,2]
[360225686,1746637836462,-500.0,0.00013699,2]
[360225687,1746637836473,-348.46529431,0.00013699,2]
[360225688,1746637836483,-278.0,0.00013759,2]
[360225689,1746637836493,-420.0,0.00013805,2]
[360225690,1746637836503,-250.0,0.00013819,2]
[360225691,1746637836514,-151.0,0.00013832,2]
[360225692,1746637836524,-151.0,0.00013832,2]
[360225693,1746637836534,-151.0,0.00013832,2]
[360225694,1746637836544,-487.57290149,0.0001393,2]
[360225695,1746637836554,-209.0,0.0001395,2]
[360225696,1746637836565,-209.0,0.0001395,2]
[360225697,1746637836575,-151.0,0.0001395,2]
[360225698,1746637836585,-137.54183431,0.00013951,2]
[360225699,1746637836620,-227.64735669,0.00013951,2]
[360225700,1746637836632,-365.189191,0.00013951,2]
[360225701,1746637836643,-161.62361886,0.00013971,2]
[360225702,1746637836653,-160.0,0.00013971,2]
[360225703,1746637836663,-365.189191,0.00013972,2]
[360225704,1746637836673,-365.189191,0.00013972,2]
[360225705,1746637836683,-361.29350699,0.00013972,2]
[360225919,1746637845857,-400.0,0.00013698,2]
[360225920,1746637845870,-400.0,0.00013698,2]
[360225921,1746637845880,-2896.18,0.00013698,2]
[360225922,1746637845890,-400.0,0.00013698,2]
[360225924,1746637845900,-761.66466758,0.00013698,2]
[360225926,1746637845912,-723.02533242,0.00013698,2]
[360225928,1746637845922,-400.0,0.00013698,2]
[360225929,1746637845932,-400.0,0.00013698,2]
[360225931,1746637845941,-739.78,0.00013698,2]
[360225933,1746637845952,-450.48,0.00013698,2]
[360225935,1746637845961,-404.0,0.00013712,2]
[360225937,1746637845971,-3.89568401,0.00013972,2]
[360225939,1746637845980,-365.189191,0.00013972,2]
[360225941,1746637845990,-365.189191,0.00013972,2]
[360225943,1746637846000,-365.189191,0.00013972,2]
[360225945,1746637846009,-154.201479,0.00013972,2]
[360225947,1746637846018,-151.0,0.00013972,2]
[360225950,1746637846027,-151.0,0.00013972,2]
[360225952,1746637846037,-151.0,0.00013972,2]
[360225954,1746637846045,-151.0,0.00013972,2]
[360225956,1746637846054,-400.0,0.00013972,2]
[360225957,1746637846063,-400.0,0.00013972,2]
[360225960,1746637846074,-400.0,0.00013972,2]
[360225961,1746637846084,-400.0,0.00013972,2]
[360225963,1746637846094,-400.0,0.00013972,2]
[360225966,1746637846104,-400.0,0.00013972,2]
[360225968,1746637846114,-400.0,0.00013972,2]
[360225970,1746637846126,-400.0,0.00013972,2]
[360225972,1746637846136,-1038.27,0.00013972,2]
[360225974,1746637846146,-400.0,0.00013972,2]
[360225976,1746637846155,-400.0,0.00013972,2]
[360225978,1746637846165,-400.0,0.00013972,2]
[360225980,1746637846174,-489.45,0.00013972,2]
[360225982,1746637846183,-400.0,0.00013972,2]
[360225984,1746637846193,-400.0,0.00013972,2]
[360225986,1746637846202,-400.0,0.00013972,2]
[360225987,1746637846211,-400.0,0.00013972,2]
[360225990,1746637846220,-420.12037511,0.00013972,2]
[360225991,1746637846230,-400.0,0.00013972,2]
[360225994,1746637846240,-400.0,0.00013972,2]
[360225996,1746637846249,-400.0,0.00013972,2]
[360225998,1746637846259,-400.0,0.00013972,2]
[360226000,1746637846269,-151.0,0.00013972,2]
[360226002,1746637846279,-151.0,0.00013972,2]
[360226004,1746637846289,-260.475641,0.00013972,2]
[360226006,1746637846299,-260.475641,0.00013972,2]
[360226008,1746637846309,-260.475641,0.00013972,2]
[360226010,1746637846318,-260.475641,0.00013972,2]
[360226012,1746637846329,-505.46,0.00013972,2]
[360226014,1746637846339,-260.475641,0.00013972,2]
[360226015,1746637846348,-260.475641,0.00013972,2]
[360226017,1746637846358,-400.0,0.00013972,2]
[360226019,1746637846369,-400.0,0.00013972,2]
[360226021,1746637846379,-434.43276138,0.00013972,2]
[360226023,1746637846389,-400.0,0.00013972,2]
[360226025,1746637846400,-400.0,0.00013972,2]
[360226027,1746637846413,-400.0,0.00013972,2]
[360226028,1746637846422,-24.33585124,0.00013972,2]
[360226605,1746638281297,2839.38714257,0.00022,30]
[360226638,1746639031938,-300.0,0.00013686,2]
[360226639,1746639031950,-811.0,0.00013686,2]
[360226640,1746639031960,-168.91929124,0.00013687,2]
[360226641,1746639031970,-524.74360809,0.00013687,2]
[360226642,1746639031982,-503.43121799,0.00013687,2]
[360226643,1746639031992,-500.0,0.00013687,2]
[360226644,1746639032003,-500.0,0.00013687,2]
[360226645,1746639032012,-500.0,0.00013687,2]
[360226646,1746639032022,-500.0,0.00013687,2]
[360226647,1746639032031,-500.0,0.00013687,2]
[360226648,1746639032041,-500.0,0.00013687,2]
[360226649,1746639032051,-500.0,0.00013687,2]
[360226650,1746639032061,-500.0,0.00013687,2]
[360226651,1746639032070,-500.0,0.00013687,2]
[360226652,1746639032080,-500.0,0.00013687,2]
[360226653,1746639032089,-500.0,0.00013687,2]
[360226654,1746639032100,-500.0,0.00013687,2]
[360226655,1746639032109,-500.0,0.00013687,2]
[360226656,1746639032119,-500.0,0.00013687,2]
[360226657,1746639032128,-500.0,0.00013687,2]
[360226658,1746639032138,-500.0,0.00013687,2]
[360226659,1746639032149,-500.0,0.00013687,2]
[360226660,1746639032160,-500.0,0.00013687,2]
[360226661,1746639032171,-500.0,0.00013687,2]
[360226662,1746639032182,-500.0,0.00013687,2]
[360226663,1746639032192,-500.0,0.00013687,2]
[360226664,1746639032202,-500.0,0.00013687,2]
[360226665,1746639032212,-500.0,0.00013687,2]
[360226666,1746639032223,-500.0,0.00013687,2]
[360226667,1746639032232,-282.30190272,0.00013687,2]
[360226668,1746639032242,-500.0,0.00013687,2]
[360226669,1746639032252,-500.0,0.00013687,2]
[360226670,1746639032262,-747.48885167,0.00013687,2]
[360226671,1746639032273,-747.48885167,0.00013687,2]
[360226672,1746639032282,-747.48885167,0.00013687,2]
[360226673,1746639032292,-747.48885167,0.00013687,2]
[360226674,1746639032302,-747.48885167,0.00013687,2]
[360226675,1746639032312,-747.48885167,0.00013687,2]
[360226676,1746639032325,-747.48885167,0.00013687,2]
[360226677,1746639032335,-747.48885167,0.00013687,2]
[360226678,1746639032345,-747.48885167,0.00013687,2]
[360226679,1746639032354,-102.426421,0.00013687,2]
[360226680,1746639032367,-645.06243067,0.00013687,2]
[360226681,1746639032377,-747.48885167,0.00013687,2]
[360226682,1746639032386,-747.48885167,0.00013687,2]
[360226683,1746639032396,-747.48885167,0.00013687,2]
[360226684,1746639032407,-747.48885167,0.00013687,2]
[360226685,1746639032417,-747.48885167,0.00013687,2]
[360226686,1746639032427,-747.48885167,0.00013687,2]
[360226687,1746639032437,-747.48885167,0.00013687,2]
[360226688,1746639032446,-747.48885167,0.00013687,2]
[360226689,1746639032456,-747.48885167,0.00013687,2]
[360226690,1746639032466,-747.48885167,0.00013687,2]
[360226691,1746639032476,-714.85075536,0.00013687,2]
[360226729,1746639037991,-32.63809631,0.00013687,2]
[360226731,1746639038001,-747.48885167,0.00013687,2]
[360226733,1746639038012,-747.48885167,0.00013687,2]
[360226735,1746639038021,-747.48885167,0.00013687,2]
[360226737,1746639038031,-747.48885167,0.00013687,2]
[360226739,1746639038041,-747.48885167,0.00013687,2]
[360226741,1746639038050,-747.48885167,0.00013687,2]
[360226743,1746639038060,-747.48885167,0.00013687,2]
[360226745,1746639038070,-747.48885167,0.00013687,2]
[360226747,1746639038079,-747.48885167,0.00013687,2]
[360226748,1746639038088,-747.48885167,0.00013687,2]
[360226750,1746639038098,-747.48885167,0.00013687,2]
[360226752,1746639038107,-747.48885167,0.00013687,2]
[360226754,1746639038118,-747.48885167,0.00013687,2]
[360226756,1746639038128,-747.48885167,0.00013687,2]
[360226758,1746639038138,-747.48885167,0.00013687,2]
[360226760,1746639038148,-747.48885167,0.00013687,2]
[360226762,1746639038158,-747.48885167,0.00013687,2]
[360226764,1746639038168,-747.48885167,0.00013687,2]
[360226766,1746639038177,-747.48885167,0.00013687,2]
[360226768,1746639038187,-747.48885167,0.00013687,2]
[360226770,1746639038196,-747.48885167,0.00013687,2]
[360226772,1746639038206,-747.48885167,0.00013687,2]
[360226774,1746639038216,-743.5546998,0.00013687,2]
[360226776,1746639038225,-743.5546998,0.00013687,2]
[360226778,1746639038234,-743.5546998,0.00013687,2]
[360226780,1746639038244,-743.5546998,0.00013687,2]
[360226782,1746639038254,-743.5546998,0.00013687,2]
[360226784,1746639038264,-743.5546998,0.00013687,2]
[360226786,1746639038273,-743.5546998,0.00013687,2]
[360226788,1746639038283,-743.5546998,0.00013687,2]
[360226789,1746639038293,-743.5546998,0.00013687,2]
[360226791,1746639038302,-743.5546998,0.00013687,2]
[360226793,1746639038312,-743.5546998,0.00013687,2]
[360226795,1746639038322,-743.5546998,0.00013687,2]
[360226797,1746639038332,-743.5546998,0.00013687,2]
[360226799,1746639038341,-743.5546998,0.00013687,2]
[360226801,1746639038350,-743.5546998,0.00013687,2]
[360226803,1746639038360,-743.5546998,0.00013687,2]
[360226804,1746639038370,-743.5546998,0.00013687,2]
[360226805,1746639038380,-743.5546998,0.00013687,2]
[360226807,1746639038390,-743.5546998,0.00013687,2]
[360226808,1746639038400,-2241.63079521,0.00013695,2]
[360226810,1746639038412,-7475.99,0.00013695,2]
[360226812,1746639038469,-33136.07793971,0.00013695,2]
[360226813,1746639038479,-202.0049204,0.00013698,2]
[360226814,1746639038490,-177.2034283,0.00013698,2]
[360226815,1746639038500,-873.44,0.00013698,2]
[360226816,1746639038510,-400.0,0.00013698,2]
[360226817,1746639038519,-524.70721796,0.00013698,2]
[360226818,1746639038530,-532.76,0.00013698,2]
[360226819,1746639038540,-400.0,0.00013698,2]
[360226820,1746639038550,-400.0,0.00013698,2]
[360226821,1746639038560,-400.0,0.00013698,2]
[360226822,1746639038570,-400.0,0.00013698,2]
[360226823,1746639038580,-473.69691751,0.00013698,2]
[360226824,1746639038774,-400.0,0.00013698,2]
[360226825,1746639038786,-401.56,0.00013698,2]
[360226826,1746639038796,-400.0,0.00013698,2]
[360226827,1746639038806,-400.0,0.00013698,2]
[360226828,1746639038817,-400.0,0.00013698,2]
[360226829,1746639038827,-400.0,0.00013698,2]
[360226830,1746639038836,-400.0,0.00013698,2]
[360226831,1746639038846,-410.74,0.00013698,2]
[360226832,1746639038855,-594.63,0.00013698,2]
[360226833,1746639038865,-400.0,0.00013698,2]
[360226834,1746639038875,-400.0,0.00013698,2]
[360226835,1746639038887,-400.0,0.00013698,2]
[360226836,1746639038898,-400.0,0.00013698,2]
[360226837,1746639038911,-400.0,0.00013698,2]
[360226838,1746639038922,-400.0,0.00013698,2]
[360226839,1746639038932,-400.0,0.00013698,2]
[360226840,1746639038943,-500.0,0.00013698,2]
[360226841,1746639038953,-400.0,0.00013698,2]
[360226842,1746639038962,-1422.83,0.00013698,2]
[360226843,1746639038972,-978.54,0.00013698,2]
[360226844,1746639038983,-400.99,0.00013698,2]
[360226845,1746639038994,-400.0,0.00013698,2]
[360226846,1746639039005,-400.0,0.00013698,2]
[360226847,1746639039014,-400.0,0.00013698,2]
[360226848,1746639039024,-570.5,0.00013698,2]
[360226849,1746639039034,-461.98,0.00013698,2]
[360226850,1746639039045,-2385.12,0.00013698,2]
[360226851,1746639039054,-400.0,0.00013698,2]
[360226852,1746639039063,-454.13413495,0.00013698,2]
[360226853,1746639039073,-400.0,0.00013698,2]
[360226854,1746639039082,-400.0,0.00013698,2]
[360226855,1746639039092,-400.0,0.00013698,2]
[360226856,1746639039102,-400.0,0.00013698,2]
[360226857,1746639039111,-400.0,0.00013698,2]
[360226858,1746639039120,-400.0,0.00013698,2]
[360226859,1746639039130,-400.0,0.00013698,2]
[360226860,1746639039139,-579.62,0.00013698,2]
[360226861,1746639039148,-400.0,0.00013698,2]
[360226862,1746639039158,-426.28419022,0.00013698,2]
[360226863,1746639039167,-400.0,0.00013698,2]
[360226864,1746639039176,-675.12,0.00013698,2]
[360226865,1746639039185,-400.0,0.00013698,2]
[360226866,1746639039195,-459.45,0.00013698,2]
[360226867,1746639039204,-400.0,0.00013698,2]
[360226868,1746639039214,-1309.84,0.00013698,2]
[360226869,1746639039223,-400.0,0.00013698,2]
[360226870,1746639039233,-887.5,0.00013698,2]
[360226871,1746639039244,-400.0,0.00013698,2]
[360226872,1746639039253,-400.0,0.00013698,2]
[360226873,1746639039263,-400.0,0.00013698,2]
[360226874,1746639039273,-400.0,0.00013698,2]
[360226875,1746639039282,-804.11,0.00013698,2]
[360226876,1746639039292,-400.0,0.00013698,2]
[360226877,1746639039302,-400.0,0.00013698,2]
[360226878,1746639039311,-208.83459303,0.00013698,2]
[360226879,1746639039321,-602.35,0.00013698,2]
[360226880,1746639039331,-665.24,0.00013698,2]
[360226881,1746639039341,-400.0,0.00013698,2]
[360226882,1746639039350,-400.0,0.00013698,2]
[360226883,1746639039359,-721.38,0.00013698,2]
[360226884,1746639039369,-400.0,0.00013698,2]
[360226885,1746639039379,-650.11,0.00013698,2]
[360226886,1746639039389,-400.0,0.00013698,2]
[360226887,1746639039398,-400.0,0.00013698,2]
[360226888,1746639039409,-400.0,0.00013698,2]
[360226889,1746639039419,-400.0,0.00013698,2]
[360226890,1746639039429,-1393.39,0.00013698,2]
[360226891,1746639039439,-707.0,0.00013698,2]
[360226892,1746639039448,-400.0,0.00013698,2]
[360226893,1746639039458,-4093.54,0.00013698,2]
[360226894,1746639039467,-400.0,0.00013698,2]
[360226895,1746639039477,-1322.81,0.00013698,2]
[360226896,1746639039487,-400.0,0.00013698,2]
[360226897,1746639039496,-400.0,0.00013698,2]
[360226898,1746639039506,-2617.26,0.00013698,2]
[360226899,1746639039516,-239.00031963,0.00013698,2]
[360226900,1746639039525,-872.59,0.00013698,2]
[360226901,1746639039535,-461.53,0.00013698,2]
[360226902,1746639039545,-838.0,0.00013698,2]
[360226903,1746639039555,-400.0,0.00013698,2]
[360226904,1746639039564,-400.0,0.00013698,2]
[360226905,1746639039573,-3671.95381708,0.00013698,2]
[360226959,1746639040492,-2304.01618292,0.00013698,2]
[360226960,1746639040502,-400.0,0.00013698,2]
[360226961,1746639040513,-400.0,0.00013698,2]
[360226962,1746639040523,-726.4,0.00013698,2]
[360226963,1746639040533,-400.0,0.00013698,2]
[360226964,1746639040544,-400.0,0.00013698,2]
[360226965,1746639040554,-1204.48,0.00013698,2]
[360226966,1746639040563,-301.79965926,0.00013698,2]
[360226968,1746639040573,-1269.92,0.00013698,2]
[360226970,1746639040584,-400.0,0.00013698,2]
[360226971,1746639040593,-400.0,0.00013698,2]
[360226972,1746639040603,-400.0,0.00013698,2]
[360226973,1746639040613,-151.0,0.00013698,2]
[360226974,1746639040623,-400.0,0.00013698,2]
[360226976,1746639040632,-400.0,0.00013698,2]
[360226978,1746639040641,-248.23130578,0.00013698,2]
[360226980,1746639040651,-700.94,0.00013698,2]
[360226982,1746639040661,-67.04973975,0.00013698,2]
[360227494,1746639046059,-262.69755229,0.00013698,2]
[360227495,1746639046072,-230.46339787,0.00013698,2]
[360227496,1746639046082,-400.0,0.00013698,2]
[360227497,1746639046092,-793.13,0.00013698,2]
[360227498,1746639046101,-400.0,0.00013698,2]
[360227499,1746639046111,-400.0,0.00013698,2]
[360227500,1746639046120,-400.0,0.00013698,2]
[360227501,1746639046130,-400.0,0.00013698,2]
[360227502,1746639046141,-1356.62,0.00013698,2]
[360227503,1746639046152,-400.0,0.00013698,2]
[360227504,1746639046161,-514.86215036,0.00013698,2]
[360227505,1746639046171,-400.0,0.00013698,2]
[360227506,1746639046182,-400.0,0.00013698,2]
[360227507,1746639046192,-211.5032554,0.00013698,2]
[360227508,1746639046202,-509.30324489,0.00013698,2]
[360227510,1746639046212,-151.0,0.00013698,2]
[360227512,1746639046221,-231.82230689,0.00013698,2]
[360227514,1746639046231,-400.0,0.00013698,2]
[360227516,1746639046241,-400.0,0.00013698,2]